Cogmind - Beta 12 @@@ ROGUE MODE // 2023.11.09 @ 18:06:55 Player: kaj Result: Destroyed by G-47 Trooper with Particle Gun Performance ------------- Evolutions (0) 0 Regions Visited (2) 400 Robots Destroyed (27) 135 Value Destroyed (666) 666 Prototype IDs (0) 0 Alien Tech Used (0) 0 Bonus (0) 0 TOTAL SCORE: 1201 Bonus ------- None Cogmind --------- Core Integrity 0/250 Matter 392/400 Energy 125/125 System Corruption 0% Temperature Cool (16) Movement Rolling (110) Ox2 Location -10/Mines Parts ------- > --- POWER (1) -------- Light Ion Engine > --- PROPULSION (2) --- Aluminum Leg Wheel > --- UTILITY (2) ------ Large Storage Unit Medium Matter Pod > --- WEAPON (2) ------- Light Assault Rifle Light Assault Rifle > --- INVENTORY (15) --- Ion Engine Light Ion Engine Light Nuclear Core Light Nuclear Core Wheel Compact Wheel Improved Heat Sink Large Storage Unit Signal Interpreter Targeting Computer Targeting Computer Tractor Beam Small Laser Particle Gun Mining Claw Peak State ------------ > --- POWER ------------ Light Ion Engine > --- PROPULSION ------- Aluminum Leg Wheel > --- UTILITY ---------- Large Storage Unit Medium Matter Pod > --- WEAPON ----------- Light Assault Rifle Light Assault Rifle > --- INVENTORY -------- Ion Engine Light Ion Engine Light Nuclear Core Light Nuclear Core Wheel Compact Wheel Improved Heat Sink Large Storage Unit Signal Interpreter Targeting Computer Targeting Computer Tractor Beam Small Laser Particle Gun Mining Claw [Rating: 9] Favorites ----------- Power Light Ion Engine Engine Light Ion Engine Propulsion Light Treads Treads Light Treads Leg Aluminum Leg Wheel Wheel Utility Large Storage Unit Device Seismic Detector Storage Large Storage Unit Weapon Light Assault Rifle Energy Gun Small Laser Ballistic Gun Light Assault Rifle Special Weapon Mining Laser Slashing Weapon Mining Claw Build | -11 -10 -10 ------- Run | Jun Mat Min Slots Evolved . | . . . Power . | . . . Propulsion . | . . . Utility . | . . . Weapon . | . . . Parts Attached 23 | 3 14 6 Power 2 | . 1 1 Engine 2 | . 1 1 Core . | . . . Reactor . | . . . Propulsion 8 | 2 4 2 Treads 2 | 1 1 . Leg 3 | . 2 1 Wheel 3 | 1 1 1 Hover . | . . . Flight . | . . . Utility 3 | . 3 . Device 1 | . 1 . Storage 2 | . 2 . Processor . | . . . Hackware . | . . . Protection . | . . . Artifact . | . . . Weapon 10 | 1 6 3 Energy Gun 4 | . 3 1 Energy Cannon . | . . . Ballistic Gun 4 | 1 1 2 Ballistic Cannon . | . . . Launcher . | . . . Special Weapon 1 | . 1 . Impact Weapon . | . . . Slashing Weapon 1 | . 1 . Piercing Weapon . | . . . Special Melee Weapon . | . . . Unidentified Prototypes . | . . . Parts Lost 10 | . 6 4 Power 2 | . 1 1 Propulsion 4 | . 2 2 Utility 1 | . 1 . Weapon 3 | . 2 1 Highest Loss Streak 5 | . 5 2 To Critical Strikes . | . . . Average Slot Usage (%) 97 | . 97 96 Engine 13 | . 13 14 Treads 11 | . 11 11 Leg 5 | . 7 . Wheel 10 | . 9 14 Device 6 | . 7 . Storage 20 | . 18 28 Energy Gun 12 | . 14 3 Ballistic Gun 9 | . 7 14 Slashing Weapon 5 | . 5 6 Naked Turns . | . . . Heaviest Build 29 | 12 29 29 Greatest Support 20 | 10 20 10 Greatest Overweight (x) 2 | 1 2 2 Average Overweight (x) 1 | 1 1 2 Largest Inventory Capacity 15 | 8 15 15 Average Capacity 13 | 8 13 15 Most Carried 15 | 6 15 15 Average Carried 13 | 6 12 14 Final Capacity 15 | 8 15 15 Final Carried 15 | 6 15 15 Class Distribution -------------------- 100% | Mutant Dominant Class ---------------- Mutant | -10/Materials Mutant | -10/Mines Resources | -11 -10 -10 ----------- Run | Jun Mat Min Matter Collected 592 | 221 275 96 Remotely . | . . . Salvage Created 907 | . 609 298 Parts 55 | . 36 19 Haulers Intercepted . | . . . Recyclers Shooed 1 | . 1 . Parts Field Recycled . | . . . Retrieved Matter . | . . . Parts Self-Destructed . | . . . Prevented . | . . . Kills | -11 -10 -10 ------- Run | Jun Mat Min Combat Hostiles Destroyed 24 | . 15 9 Melee 3 | . 1 2 Guns 21 | . 14 7 Classes Destroyed 6 | . 5 1 Worker 2 | . 2 . Builder 1 | . 1 . Recycler 1 | . 1 . Swarmer 7 | . 5 2 Grunt 16 | . 10 6 Assembled 1 | . . 1 Best Kill Streak 4 | . 4 3 Combat Bots Only 3 | . 3 3 Max Kills in Single Turn 2 | . 2 1 Gunslinging 1 | . 1 . Exploded . | . . . Melee 1 | . 1 1 Uniques/NPCs Destroyed . | . . . Combat | -11 -10 -10 -------- Run | Jun Mat Min Damage Taken 1383 | . 809 574 Core 258 | . 134 124 Absorbed by Shields . | . . . Core Remaining (%) 100 | 100 . . Volleys Fired 78 | . 49 29 Largest 2 | . 2 2 Hottest 80 | . 80 40 Shots Fired 143 | . 92 51 Gun 143 | . 92 51 Cannon . | . . . Launcher . | . . . Special . | . . . Kinetic 82 | . 38 44 Thermal 47 | . 47 . Explosive . | . . . Electromagnetic 14 | . 7 7 Robot Hit Streak 15 | . 12 15 Robot Miss Streak 4 | . 3 4 Penetration Max . | . . . Secondary Targets 6 | . 5 1 Max Gunslinging Chain 1 | . 1 1 Shots Hit Robots 116 | . 73 43 Core Hits 51 | . 31 20 Critical Kills . | . . . Critical Parts Destroyed 1 | . . 1 Critical Strikes 1 | . . 1 Destroy 1 | . . 1 Melee Attacks 21 | . 12 9 Impact . | . . . Slashing 21 | . 12 9 Piercing . | . . . Sneak Attacks 5 | . 4 1 Combat Hostiles 1 | . . 1 Follow-up Attacks . | . . . Damage Inflicted 1416 | . 947 469 Guns 1014 | . 678 336 Cannons . | . . . Explosions . | . . . Melee 402 | . 269 133 Ramming . | . . . Kinetic 553 | . 251 302 Thermal 357 | . 357 . Explosive . | . . . Electromagnetic 104 | . 70 34 Impact . | . . . Slashing 402 | . 269 133 Piercing . | . . . Highest Corruption . | . . . Average Corruption . | . . . Corruption Purged . | . . . Corruption Blocked . | . . . Overload Shots . | . . . Overflow Damage 8 | . 8 . Projectiles . | . . . Explosions . | . . . Melee 8 | . 8 . Knockbacks . | . . . Impact . | . . . Kinetic . | . . . Secondary . | . . . Self-Inflicted Damage . | . . . Shots . | . . . Rammed . | . . . Targets Rammed . | . . . Kicked . | . . . Crushed . | . . . Highest Temperature 299 | . 299 25 Average Temperature 71 | . 88 10 Received Heat Transfer 690 | . 387 303 Effects 3 | . 3 . Energy Bleed 1 | . 1 . Interference 2 | . 2 . Siege Activations . | . . . Robots Corrupted . | . . . Combat Hostiles . | . . . Parts Fried . | . . . Impact Corruptions . | . . . Robots Melted . | . . . Combat Hostiles . | . . . Parts Melted 1 | . 1 . Heat Transferred 775 | . 775 . Parts Sabotaged . | . . . Parts Stolen . | . . . Parts Stripped . | . . . Power Chain Reactions . | . . . Missiles Intercepted . | . . . Alert | -11 -10 -10 ------- Run | Jun Mat Min Peak Influence 251 | . 251 188 Initial 8 | . . 8 Average 125 | . 133 99 Maximum Alert Level 1 | . 1 . Low Security (%) 89 | 100 86 100 Level 1 10 | . 13 . Level 2 . | . . . Level 3 . | . . . Level 4 . | . . . Level 5 . | . . . High Security . | . . . Max Security . | . . . Squads Dispatched 4 | . 4 . Investigation 3 | . 3 . Extermination . | . . . Reinforcement 1 | . 1 . Assault . | . . . Garrison . | . . . Intercept . | . . . Searches Triggered . | . . . Construction Impeded . | . . . Haulers Reinforced . | . . . Active Scanning Responses . | . . . Cargo Convoy Interrupts . | . . . Stealth | -11 -10 -10 --------- Run | Jun Mat Min Distress Signals 1 | . 1 . Communications Jammed . | . . . Distress Signals . | . . . Times Spotted 36 | . 23 13 Peak Tracking Total 5 | . 5 4 Tactical Retreats 2 | . 1 1 Traps | -11 -10 -10 ------- Run | Jun Mat Min Traps Triggered 3 | . 3 . Indirectly . | . . . Trap Hack Attempts . | . . . Triggered . | . . . Disarmed . | . . . Reprogrammed . | . . . Reused . | . . . Traps Extracted . | . . . Installed . | . . . Triggered . | . . . Machines | -11 -10 -10 ---------- Run | Jun Mat Min Machines Disabled . | . . . Max in Single Turn . | . . . Machines Repaired . | . . . Machines Sabotaged . | . . . Overloaded Fab Kills . | . . . Hacking | -11 -10 -10 --------- Run | Jun Mat Min Machines Accessed 3 | . 3 . Terminals 3 | . 3 . Fabricators . | . . . Repair Stations . | . . . Recycling Units . | . . . Scanalyzers . | . . . Garrison Access . | . . . Total Hacks 5 | . 5 . Successful 4 | . 4 . Failed 1 | . 1 . Catastrophic . | . . . Database Lockouts . | . . . Manual 7 | . 7 . Terminals 5 | . 5 . Fabricators . | . . . Repair Stations . | . . . Recycling Units . | . . . Scanalyzers . | . . . Garrison Access . | . . . Terminal Hacks 4 | . 4 . Robot Analysis 2 | . 2 . Branch Access Points 1 | . 1 . Zone Layout 1 | . 1 . Fabricator Hacks . | . . . Repair Station Hacks . | . . . Recycling Unit Hacks . | . . . Scanalyzer . | . . . Garrison Access Hacks . | . . . Unauthorized Hacks . | . . . Terminals . | . . . Fabricators . | . . . Repair Stations . | . . . Recycling Units . | . . . Scanalyzers . | . . . Garrison Access . | . . . Data Cores Recovered . | . . . Used . | . . . Hacking Detections 2 | . 2 . Full Trace Events 1 | . 1 . Feedback Events . | . . . Feedback Blocked . | . . . Robot Schematics Acquired . | . . . Robots Built . | . . . Authchips . | . . . Time . | . . . Total Robot Build Rating . | . . . Part Schematics Acquired . | . . . Parts Built . | . . . Authchips . | . . . Time . | . . . Total Part Build Rating . | . . . Parts Repaired . | . . . Time . | . . . Parts Recycled . | . . . Recycled Matter . | . . . Retrieved Matter . | . . . Retrieved Components . | . . . Parts Scanalyzed . | . . . Part Schematics Acquired . | . . . Parts Damaged . | . . . Bothacking | -11 -10 -10 ------------ Run | Jun Mat Min Used RIF Installer . | . . . Robots Hacked . | . . . Non-combat . | . . . Combat . | . . . Robot Hacks Applied . | . . . Relay Couplers Released . | . . . Fabnet Peak Effective % . | . . . Robots Rewired . | . . . Allies Hacked . | . . . Hacks Repelled . | . . . Allies | -11 -10 -10 -------- Run | Jun Mat Min Total Allies . | . . . Largest Group . | . . . Highest-Rated Group . | . . . Highest-Rated Ally . | . . . Total Orders . | . . . Ally Attacks . | . . . Total Damage . | . . . Kills . | . . . Allies Corrupted . | . . . Allies Melted . | . . . Intel | -11 -10 -10 ------- Run | Jun Mat Min Robot Analysis Total 2 | . 2 . Derelict Logs Recovered . | . . . Drone Launches . | . . . Drone Recoveries . | . . . Exploration | -11 -10 -10 ------------- Run | Jun Mat Min Turns Passed 1007 | 11 802 194 Spaces Moved 510 | 7 435 68 Core . | . . . Treads 25 | . 25 . Legs 47 | . 47 . Wheels 438 | 7 363 68 Hover . | . . . Flight . | . . . Fastest Speed 95 | 95 95 110 Average Speed 120 | 95 122 110 Slowest Speed 240 | 95 240 110 Overloaded Moves . | . . . Propulsion Burnouts . | . . . Robots Hopped . | . . . Cave-ins Triggered . | . . . Exploration Rate (%) 29 | 3 68 18 Regions Visited 2 Branch Regions 1 Pre-discovered Areas . | . . . Known Exits Taken 1 | . 1 . Unknown Exits Taken 1 | 1 . . Scrap Searched . | . . . Spaces Dug . | . . . Terrain Destroyed . | . . . Melee . | . . . Projectile . | . . . AOE . | . . . Terrain Rammed . | . . . Walls Destroyed . | . . . Machines Disabled . | . . . Actions | -11 -10 -10 --------- Run | Jun Mat Min Total 731 | 9 594 128 Wait 69 | . 62 7 Move 508 | 6 434 68 Hop . | . . . Pick Up 23 | . 17 6 Fast Attach 5 | . 4 1 Attach 10 | . 7 3 Detach . | . . . Swap 8 | 3 3 2 Drop 9 | . 6 3 Fire 78 | . 49 29 Melee 21 | . 12 9 Ram . | . . . Kick . | . . . Crush . | . . . Escape Stasis . | . . . Rewire . | . . . Trap . | . . . Miscellaneous . | . . . Route ------- -11/Junkyard -10/Materials (discovered 2 exits: [*Mat] / *Min) -10/Mines History --------- Turn | Location | Event 6 | -11/Junkyard | Discovered new exit (range 3) 12 | -11/Junkyard | Entered Materials 208 | -10/Materials | Identified exit to Mines 316 | -10/Materials | Build established: Mutant 489 | -10/Materials | Core integrity fell below 50% 517 | -10/Materials | Lost 5 parts (1p1n1u2w) 665 | -10/Materials | Discovered new exit (range 16) 814 | -10/Materials | Entered Mines 883 | -10/Mines | Excavation squad dispatched 883 | -10/Mines | A large section of the Mines collapsed 961 | -10/Mines | Core integrity fell below 20% 1008 | -10/Mines | Destroyed by G-47 Trooper with Particle Gun Last Messages --------------- 00919_ G-34 Mercenary suffers critical hit (Destroy). 00919_ Destroyed Aluminum Leg. 00921_ G-34 Mercenary destroyed. 00921_ Switching to secondary target: G-34 Mercenary. 00926_ G-34 Mercenary destroyed. 00937_ Acquired 36 matter. 00939_ Dropped EM Pulse Gun. 00941_ Acquired Sml. Laser. 00943_ R-06 Scavenger collects EM Pulse Gun. 00948_ R-06 Scavenger collects Aluminum Leg. 00962_ Lgt. Ion Engine destroyed. 00968_ G-34 Mercenary destroyed. 00976_ Lgt. Treads destroyed. 00978_ G-47 Trooper destroyed. 00982_ Acquired 20 matter. 00983_ Dropped Heat Sink. 00985_ Acquired Imp. Heat Sink. 00988_ Acquired Lgt. Nuclear Core. 00990_ Acquired Aluminum Leg. 00991_ Acquired 10 matter. Map ----- +----------------------------------------------------+ | ?????????????????????????????????????????????????? | | ?????????????????????????????????????????????????? | | ?????????????????????????????????????????????????? | | ?????????????????????????????????????????????????? | | ###??????????????????????????????????????????????? | | ##?????????????????????????????????????????????? | | ##????????????????????????????????????????????? | | ##???????????????????????????????????????????? | | #???????#???????????????????????????????????? | | ==#?????? #???????????????????????????????????? | | %##?????? #???????????????????????????????????? | | ###?????? #???????????????????????????????????? | | ##???????? #???????????#???????????????????????? | | #???????? ##?????????? ???????????????????????? | | #???????? ##### ??"" ???????????????????????? | | ##???????# ??"" ???????????????????????? | | *######## $ ???"" ???????????????????????? | | #%"[ #?????????? ???????????????????????? | | ###### ##?????????? ???????????????????????? | | ?????# ##??????????? ???????????????????????? | | ?????# ###?#####?????? ???????????????????????? | | ?????# #??## ####??? #???????????????????????? | | ?????# #### ##??# #???##??????????????????? | | ?????# %% #??# #?? $???????????????????? | | ?????# !==% #??# ##g#????????????????????? | | ?????# ###### #??# @g #????????????????????? | | ??? ????## #??# ####????????????????????? | | ?# """ ""?????## ##?# #???????????????????????? | | """ ""??????### ### #???????????????????????? | | ## """ ""????????## ## #???????????????????????? | | ?# ????????## =% ##??????????????????????? | | ??? ????????# % #??????????????????????? | | ??? ?????????# != #??????????????????????? | | ??? ????????# ##??????????????????????? | | ???####????????# ###???????????????????????? | | ??????????????# ######?????????????????????????? | | ??????????????####???????????????????????????????? | | ?????????????????????????????????????????????????? | | ?????????????????????????????????????????????????? | | ?????????????????????????????????????????????????? | | ?????????????????????????????????????????????????? | | ?????????????????????????????????????????????????? | | ?????????????????????????????????????????????????? | | ?????????????????????????????????????????????????? | | ?????????????????????????????????????????????????? | | ?????????????????????????????????????????????????? | | ?????????????????????????????????????????????????? | | ?????????????????????????????????????????????????? | | ?????????????????????????????????????????????????? | | ?????????????????????????????????????????????????? | +----------------------------------------------------+ Best States ------------- Heat Dissipation 25 Energy Generation 10 Energy Capacity 250 Matter Stores 400 Matter Capacity 400 Sight Range 16 Terrain Scan Density 10 Evasion (%) 41 Recoil Reduction 1 Item Schematics ----------------- None Robot Schematics ------------------ None Fabricated ------------ Nothing Alien Tech Used ----------------- None Achievements -------------- None Challenges ------------ None Game ------ Seed ArmoredBurstCorpse Manual? 0 Play Time 00:13:20 Cumulative 145.2 hours Start 2023.11.09 @ 17:54:08 End 2023.11.09 @ 18:06:55 Sessions 1 Manual Loads 0 Difficulty Rogue Special Mode None Game No. 219 Rogue 219 Adventurer 0 Explorer 0 Win Type - Total 0 Types 0/0/0/0/0/0/0/0/0 Lore% 49 Gallery% 58 Achievement% 43 Wizard Run 0 Options --------- ASCII 0 Keyboard 0 Movement Mouse Keybinds 1 Fullscreen 2 Font 18/X11 Map View 76x50 Tactical HUD 1 Map Filters SATURATION(75) Filters LOW_CONTRAST(23,23,23) Steam 1 RUN: 04aee360-5a3c-4740-b93e-4da866180f27